[Event "Masters Tournament (MTO)"]
[Site "Biel, Switzerland"]
[Date "2026.07.13"]
[Round "1.32"]
[White "Carey, Michael"]
[Black "Harish, Neeraj"]
[Result "1/2-1/2"]
[TimeControl "100+30+30sec/move"]
[WhiteTitle "-"]
[BlackTitle "-"]
[WhiteFideId "30923760"]
[BlackFideId "30958130"]
[WhiteElo "1946"]
[BlackElo "2201"]

1. Nf3 {[%clk 01:40:30]} d5 {[%clk 01:40:30]} 2. e3 {[%clk 01:40:30]} Nf6
{[%clk 01:40:30]} 3. c4 {[%clk 01:40:30]} e6 {[%clk 01:40:30]} 4. Nc3 {[%clk
01:40:30]} b6 {[%clk 01:40:30]} 5. cxd5 {[%clk 01:40:30]} exd5 {[%clk
01:40:30]} 6. g3 {[%clk 01:40:30]} Bd6 {[%clk 01:40:30]} 7. b3 {[%clk
01:40:30]} O-O {[%clk 01:40:30]} 8. Bb2 {[%clk 01:40:30]} Nbd7 {[%clk
01:40:30]} 9. Rc1 {[%clk 01:40:30]} a6 {[%clk 01:40:30]} 10. Bg2 {[%clk
01:40:30]} Bb7 {[%clk 01:40:30]} 11. O-O {[%clk 01:40:30]} Re8 {[%clk
01:40:30]} 12. Re1 {[%clk 01:40:30]} Rc8 {[%clk 01:40:30]} 13. d3 {[%clk
01:40:30]} c5 14. d4 Bf8 {[%clk 01:12:40]} {[%emt 00:03:01]} 15. Ne2 {[%clk
01:16:46]} {[%emt 00:13:22]} g6 {[%clk 01:08:03]} {[%emt 00:05:08]} 16. Nf4
{[%clk 01:14:17]} {[%emt 00:03:00]} Bg7 {[%clk 01:05:53]} {[%emt 00:02:40]} 17.
Re2 {[%clk 01:06:35]} {[%emt 00:08:11]} Nf8 {[%clk 00:47:57]} {[%emt 00:18:26]}
18. Rec2 {[%clk 01:02:42]} {[%emt 00:04:23]} Ne4 {[%clk 00:46:06]} {[%emt
00:02:21]} 19. Ba3 {[%clk 00:57:59]} {[%emt 00:05:13]} cxd4 {[%clk 00:29:47]}
{[%emt 00:16:50]} 20. Rxc8 {[%clk 00:58:10]} {[%emt 00:00:19]} Bxc8 {[%clk
00:30:08]} {[%emt 00:00:08]} 21. Nxd4 {[%clk 00:58:23]} {[%emt 00:00:18]} Bb7
{[%clk 00:29:44]} {[%emt 00:00:54]} 22. Bh3 {[%clk 00:49:37]} {[%emt 00:09:15]}
Nd7 {[%clk 00:24:53]} {[%emt 00:05:22]} 23. Qc2 {[%clk 00:42:15]} {[%emt
00:07:51]} Ng5 {[%clk 00:17:47]} {[%emt 00:07:37]} 24. Bg2 {[%clk 00:40:45]}
{[%emt 00:01:59]} Bxd4 {[%clk 00:15:26]} {[%emt 00:02:52]} 25. exd4 {[%clk
00:41:04]} {[%emt 00:00:10]} Nf6 {[%clk 00:14:13]} {[%emt 00:01:44]} 26. h4
{[%clk 00:39:03]} {[%emt 00:02:30]} Nge4 {[%clk 00:13:25]} {[%emt 00:01:19]} 27.
Bh3 {[%clk 00:35:33]} {[%emt 00:03:59]} a5 {[%clk 00:11:00]} {[%emt 00:02:56]}
28. Nd3 {[%clk 00:28:02]} {[%emt 00:07:59]} b5 {[%clk 00:07:04]} {[%emt
00:04:28]} 29. Qc7 {[%clk 00:23:00]} {[%emt 00:05:31]} Ba8 {[%clk 00:06:08]}
{[%emt 00:01:26]} 30. Qxd8 {[%clk 00:19:49]} {[%emt 00:03:41]} Rxd8 {[%clk
00:06:29]} {[%emt 00:00:10]} 31. Be7 {[%clk 00:18:20]} {[%emt 00:01:58]} Re8
{[%clk 00:06:24]} {[%emt 00:00:36]} 32. Bxf6 {[%clk 00:16:44]} {[%emt
00:02:06]} Nxf6 {[%clk 00:06:43]} {[%emt 00:00:10]} 33. b4 {[%clk 00:16:01]}
{[%emt 00:01:14]} axb4 {[%clk 00:05:29]} {[%emt 00:01:44]} 34. Nxb4 {[%clk
00:16:14]} {[%emt 00:00:16]} Kg7 {[%clk 00:02:54]} {[%emt 00:03:07]} 35. Bf1
{[%clk 00:15:19]} {[%emt 00:01:23]} Bb7 {[%clk 00:01:10]} {[%emt 00:02:15]} 36.
Bxb5 {[%clk 00:14:00]} {[%emt 00:01:49]} Rb8 {[%clk 00:01:16]} {[%emt
00:00:24]} 37. a4 {[%clk 00:13:08]} {[%emt 00:01:21]} Bc8 {[%clk 00:01:02]}
{[%emt 00:00:44]} 38. Nc6 {[%clk 00:11:39]} {[%emt 00:01:59]} Ra8 {[%clk
00:01:20]} {[%emt 00:00:13]} 39. Ne5 {[%clk 00:10:18]} {[%emt 00:01:50]} Be6
{[%clk 00:00:41]} {[%emt 00:01:09]} 40. Ra1 {[%clk 00:05:11]} {[%emt 00:05:37]}
Ne4 {[%clk 00:00:36]} {[%emt 00:00:35]} 41. a5 {[%clk 00:02:16]} {[%emt
00:03:26]} Nd6 {[%clk 00:27:11]} {[%emt 00:03:55]} 42. Bd3 {[%clk 00:31:12]}
{[%emt 00:01:33]} Bf5 {[%clk 00:20:59]} {[%emt 00:06:43]} 43. a6 {[%clk
00:30:09]} {[%emt 00:01:32]} Bxd3 {[%clk 00:20:10]} {[%emt 00:01:19]} 44. Nxd3
{[%clk 00:30:33]} {[%emt 00:00:06]} Nb5 {[%clk 00:20:29]} {[%emt 00:00:12]} 45.
Ra5 {[%clk 00:27:11]} {[%emt 00:03:51]} Nxd4 {[%clk 00:20:36]} {[%emt
00:00:24]} 46. Rxd5 {[%clk 00:26:18]} {[%emt 00:01:22]} Ne6 {[%clk 00:18:36]}
{[%emt 00:02:30]} 47. Ra5 {[%clk 00:25:32]} {[%emt 00:01:16]} Ra7 {[%clk
00:17:43]} {[%emt 00:01:24]} 48. Nb4 {[%clk 00:23:56]} {[%emt 00:02:06]} Nc7
{[%clk 00:17:11]} {[%emt 00:01:02]} 49. g4 {[%clk 00:21:43]} {[%emt 00:02:43]}
Kf6 {[%clk 00:15:24]} {[%emt 00:02:16]} 50. Kg2 {[%clk 00:21:40]} {[%emt
00:00:33]} Ke6 {[%clk 00:14:14]} {[%emt 00:01:41]} 51. Kg3 {[%clk 00:21:40]}
{[%emt 00:00:30]} Kd6 {[%clk 00:14:23]} {[%emt 00:00:21]} 52. f4 {[%clk
00:18:41]} {[%emt 00:03:29]} Ke6 {[%clk 00:10:59]} {[%emt 00:03:54]} 53. Kf3
{[%clk 00:17:12]} {[%emt 00:01:58]} Kd6 {[%clk 00:09:36]} {[%emt 00:01:54]} 54.
Ke4 {[%clk 00:16:09]} {[%emt 00:01:31]} h6 {[%clk 00:07:37]} {[%emt 00:02:31]}
55. f5 {[%clk 00:11:35]} {[%emt 00:05:03]} Ra8 {[%clk 00:05:02]} {[%emt
00:03:06]} 56. Kf4 {[%clk 00:11:04]} {[%emt 00:01:00]} Rb8 {[%clk 00:03:10]}
{[%emt 00:02:23]} 57. Nd3 {[%clk 00:09:19]} {[%emt 00:02:14]} Rb3 {[%clk
00:02:13]} {[%emt 00:01:28]} 58. Ke4 {[%clk 00:06:33]} {[%emt 00:03:15]} Rc3
{[%clk 00:01:39]} {[%emt 00:01:05]} 59. Ne5 {[%clk 00:05:16]} {[%emt 00:01:46]}
gxf5+ {[%clk 00:01:12]} {[%emt 00:00:57]} 60. Kxf5 {[%clk 00:05:16]} {[%emt
00:00:29]} Ke7 {[%clk 00:00:46]} {[%emt 00:00:58]} 61. a7 {[%clk 00:04:37]}
{[%emt 00:01:09]} f6 {[%clk 00:00:42]} {[%emt 00:00:34]} 62. Ng6+ {[%clk
00:04:41]} {[%emt 00:00:26]} Kf7 {[%clk 00:01:01]} {[%emt 00:00:10]} 63. Nh8+
{[%clk 00:03:44]} {[%emt 00:01:27]} Kg7 {[%clk 00:01:24]} {[%emt 00:00:07]} 64.
a8=Q {[%clk 00:03:57]} {[%emt 00:00:16]} Nxa8 {[%clk 00:01:47]} {[%emt
00:00:09]} 65. Rxa8 {[%clk 00:04:17]} {[%emt 00:00:10]} Rc5+ {[%clk 00:01:35]}
{[%emt 00:00:41]} 66. Kf4 {[%clk 00:03:42]} {[%emt 00:01:04]} Rc4+ {[%clk
00:01:13]} {[%emt 00:00:54]} 67. Kg3 {[%clk 00:04:07]} {[%emt 00:00:03]} Rc3+
{[%clk 00:01:26]} {[%emt 00:00:18]} 68. Kf2 {[%clk 00:04:27]} {[%emt 00:00:08]}
Rc2+ {[%clk 00:01:01]} {[%emt 00:00:57]} 69. Kg3 {[%clk 00:03:32]} {[%emt
00:01:25]} Rc3+ {[%clk 00:01:22]} {[%emt 00:00:09]} 70. Kf4 {[%clk 00:03:27]}
{[%emt 00:00:35]} Rc4+ {[%clk 00:01:44]} {[%emt 00:00:08]} 71. Kf5 {[%clk
00:02:59]} {[%emt 00:00:58]} Rc5+ {[%clk 00:01:19]} {[%emt 00:00:56]} 1/2-1/2

[Event "Masters Tournament (MTO)"]
[Site "Biel, Switzerland"]
[Date "2026.07.13"]
[Round "1.33"]
[White "Cervelli, Eduard"]
[Black "Scherler, Julius"]
[Result "1/2-1/2"]
[TimeControl "100+30+30sec/move"]
[WhiteTitle "-"]
[BlackTitle "-"]
[WhiteFideId "1351800"]
[BlackFideId "1337947"]
[WhiteElo "2197"]
[BlackElo "1941"]

1. e4 {[%clk 01:40:54]} {[%emt 00:00:03]} c6 {[%clk 01:40:34]} {[%emt
00:00:26]} 2. d3 {[%clk 01:39:50]} {[%emt 00:01:33]} d5 {[%clk 01:40:48]}
{[%emt 00:00:16]} 3. Nd2 {[%clk 01:40:07]} {[%emt 00:00:13]} dxe4 {[%clk
01:39:44]} {[%emt 00:01:35]} 4. dxe4 {[%clk 01:40:12]} {[%emt 00:00:24]} Nf6
{[%clk 01:38:40]} {[%emt 00:01:33]} 5. Ngf3 {[%clk 01:40:21]} {[%emt 00:00:22]}
Qc7 {[%clk 01:34:57]} {[%emt 00:04:13]} 6. g3 {[%clk 01:40:07]} {[%emt
00:00:44]} Nbd7 {[%clk 01:22:42]} {[%emt 00:12:45]} 7. Bg2 {[%clk 01:40:07]}
{[%emt 00:00:29]} Nc5 {[%clk 01:15:26]} {[%emt 00:07:48]} 8. e5 {[%clk
01:34:30]} {[%emt 00:06:06]} Nd5 {[%clk 01:13:50]} {[%emt 00:02:05]} 9. O-O
{[%clk 01:34:26]} {[%emt 00:00:33]} g6 {[%clk 01:03:34]} {[%emt 00:10:47]} 10.
c4 {[%clk 01:14:29]} {[%emt 00:20:27]} Nb6 {[%clk 00:54:12]} {[%emt 00:09:53]}
11. Nb3 {[%clk 01:13:03]} {[%emt 00:01:55]} Ne6 {[%clk 00:50:52]} {[%emt
00:03:50]} 12. Qe2 {[%clk 01:11:52]} {[%emt 00:01:41]} Bg7 {[%clk 00:49:32]}
{[%emt 00:01:50]} 13. Re1 {[%clk 01:11:06]} {[%emt 00:01:15]} O-O {[%clk
00:46:43]} {[%emt 00:03:19]} 14. Nbd4 {[%clk 00:55:50]} {[%emt 00:15:46]} Rd8
{[%clk 00:41:27]} {[%emt 00:05:46]} 15. Nxe6 {[%clk 00:54:49]} {[%emt
00:01:32]} Bxe6 {[%clk 00:39:58]} {[%emt 00:01:59]} 16. b3 {[%clk 00:55:07]}
{[%emt 00:00:11]} Nd7 {[%clk 00:32:37]} {[%emt 00:07:52]} 17. Ba3 {[%clk
00:51:10]} {[%emt 00:04:27]} Nf8 {[%clk 00:29:50]} {[%emt 00:03:16]} 18. Bb2
{[%clk 00:46:05]} {[%emt 00:05:35]} Rd7 {[%clk 00:26:43]} {[%emt 00:03:37]} 19.
Nd4 {[%clk 00:44:27]} {[%emt 00:02:08]} Rad8 {[%clk 00:26:01]} {[%emt
00:01:13]} 20. Rad1 {[%clk 00:40:30]} {[%emt 00:04:27]} Qa5 {[%clk 00:18:32]}
{[%emt 00:07:59]} 21. a3 {[%clk 00:22:39]} {[%emt 00:18:21]} Qb6 {[%clk
00:17:19]} {[%emt 00:01:43]} 22. Nxe6 {[%clk 00:16:48]} {[%emt 00:06:21]} Nxe6
{[%clk 00:14:53]} {[%emt 00:02:56]} 23. b4 {[%clk 00:17:03]} {[%emt 00:00:15]}
Qc7 {[%clk 00:09:15]} {[%emt 00:06:08]} 24. Rxd7 {[%clk 00:04:49]} {[%emt
00:12:44]} Qxd7 {[%clk 00:08:45]} {[%emt 00:01:00]} 25. Bf3 {[%clk 00:04:36]}
{[%emt 00:00:43]} Nd4 {[%clk 00:05:44]} {[%emt 00:03:31]} 1/2-1/2

[Event "Masters Tournament (MTO)"]
[Site "Biel, Switzerland"]
[Date "2026.07.13"]
[Round "1.34"]
[White "Simon, Ralf-Axel"]
[Black "Ivana Maria, Furtado"]
[Result "0-1"]
[TimeControl "100+30+30sec/move"]
[WhiteTitle "-"]
[BlackTitle "-"]
[WhiteFideId "4603125"]
[BlackFideId "5048400"]
[WhiteElo "1935"]
[BlackElo "2182"]

1. d4 {[%clk 01:40:54]} {[%emt 00:00:03]} d5 {[%clk 01:40:34]} {[%emt
00:00:26]} 2. Nf3 {[%clk 01:40:24]} {[%emt 00:01:00]} Nf6 {[%clk 01:40:24]}
{[%emt 00:00:40]} 3. c4 {[%clk 01:37:34]} {[%emt 00:03:19]} e6 {[%clk
01:40:11]} {[%emt 00:00:43]} 4. Nc3 {[%clk 01:34:23]} {[%emt 00:03:41]} Bb4
{[%clk 01:40:07]} {[%emt 00:00:34]} 5. Qa4+ {[%clk 01:29:28]} {[%emt 00:05:25]}
Nc6 {[%clk 01:40:23]} {[%emt 00:00:14]} 6. Ne5 {[%clk 01:15:07]} {[%emt
00:14:52]} Bd7 {[%clk 01:40:28]} {[%emt 00:00:24]} 7. Nxc6 {[%clk 00:35:57]}
{[%emt 00:39:40]} Bxc3+ {[%clk 01:40:40]} {[%emt 00:00:18]} 8. bxc3 {[%clk
00:34:12]} {[%emt 00:02:16]} Bxc6 {[%clk 01:40:50]} {[%emt 00:00:19]} 9. Qb3
{[%clk 00:31:31]} {[%emt 00:03:11]} a5 {[%clk 01:34:24]} {[%emt 00:06:56]} 10.
Ba3 {[%clk 00:24:30]} {[%emt 00:07:32]} dxc4 {[%clk 01:30:28]} {[%emt
00:04:26]} 11. Qxc4 {[%emt 00:01:55]} Qd5 {[%clk 01:27:12]} {[%emt 00:03:38]}
12. Qxd5 {[%clk 00:21:10]} {[%emt 00:02:32]} Nxd5 {[%clk 01:27:35]} {[%emt
00:00:08]} 13. Rc1 {[%clk 00:19:59]} {[%emt 00:01:41]} b5 {[%clk 01:26:50]}
{[%emt 00:01:14]} 14. e4 {[%clk 00:15:51]} {[%emt 00:04:38]} Nb6 {[%clk
01:25:01]} {[%emt 00:02:19]} 15. Bd3 {[%clk 00:13:46]} {[%emt 00:02:34]} Kd7
{[%clk 01:22:24]} {[%emt 00:03:09]} 16. O-O {[%clk 00:12:50]} {[%emt 00:01:24]}
Nc4 {[%clk 01:20:48]} {[%emt 00:02:08]} 17. Bc5 {[%clk 00:11:02]} {[%emt
00:02:17]} g6 {[%clk 01:17:38]} {[%emt 00:03:39]} 18. Rfd1 {[%clk 00:11:00]}
{[%emt 00:00:33]} Nb2 {[%clk 01:17:27]} {[%emt 00:00:41]} 19. Rd2 {[%clk
00:05:23]} {[%emt 00:06:07]} Nxd3 {[%clk 01:17:50]} {[%emt 00:00:07]} 20. Rxd3
{[%clk 00:05:46]} {[%emt 00:00:07]} Bxe4 {[%clk 01:18:03]} {[%emt 00:02:19]} 21.
Re3 {[%clk 00:03:46]} {[%emt 00:01:28]} Bd5 {[%clk 01:18:13]} {[%emt 00:00:20]}
22. a3 {[%clk 00:03:50]} {[%emt 00:00:26]} Rhe8 {[%clk 01:16:46]} {[%emt
00:01:57]} 23. Rb1 {[%clk 00:02:08]} {[%emt 00:02:11]} Kc6 {[%clk 01:17:06]}
{[%emt 00:00:11]} 24. f3 {[%clk 00:01:35]} {[%emt 00:01:03]} e5 {[%clk
01:17:06]} {[%emt 00:00:30]} 25. Rbe1 {[%clk 00:01:03]} {[%emt 00:01:01]} f6
{[%clk 01:17:24]} {[%emt 00:00:12]} 26. f4 {[%clk 00:00:54]} {[%emt 00:00:40]}
e4 {[%clk 01:17:26]} {[%emt 00:00:28]} 27. g4 {[%clk 00:00:58]} {[%emt
00:00:24]} f5 {[%clk 01:17:16]} {[%emt 00:00:43]} 28. Rg3 {[%clk 00:00:45]}
{[%emt 00:00:42]} fxg4 {[%clk 01:16:20]} {[%emt 00:01:26]} 29. Rxg4 {[%clk
00:01:11]} {[%emt 00:00:04]} e3 {[%clk 01:16:46]} {[%emt 00:00:05]} 30. Rg5
{[%clk 00:00:42]} {[%emt 00:00:59]} e2 {[%clk 01:16:03]} {[%emt 00:01:13]} 31.
Re5 {[%clk 00:00:40]} {[%emt 00:00:31]} Bc4 {[%clk 01:15:29]} {[%emt 00:01:04]}
32. Rb1 {[%clk 00:00:33]} {[%emt 00:00:37]} Rxe5 {[%clk 01:15:37]} {[%emt
00:00:22]} 33. fxe5 {[%clk 00:00:56]} {[%emt 00:00:06]} Kd5 {[%clk 01:14:28]}
{[%emt 00:01:41]} 34. Kf2 {[%clk 00:01:01]} {[%emt 00:00:24]} Rd8 {[%clk
01:14:48]} {[%emt 00:00:10]} 35. Ke1 {[%clk 00:00:35]} {[%emt 00:00:56]} Rd7
{[%clk 01:15:11]} {[%emt 00:00:07]} 36. Kd2 {[%clk 00:01:00]} {[%emt 00:00:05]}
Rf7 {[%emt 00:00:57]} 0-1

[Event "Masters Tournament (MTO)"]
[Site "Biel, Switzerland"]
[Date "2026.07.13"]
[Round "1.35"]
[White "Liu, Bei"]
[Black "Yang, Sung-Jui"]
[Result "1-0"]
[TimeControl "100+30+30sec/move"]
[WhiteTitle "-"]
[BlackTitle "-"]
[WhiteFideId "8603596"]
[BlackFideId "16301048"]
[WhiteElo "2175"]
[BlackElo "1935"]

1. e4 {[%clk 01:40:57]} {[%emt 00:00:03]} e6 {[%clk 01:36:06]} {[%emt
00:04:54]} 2. d4 {[%clk 01:41:17]} {[%emt 00:00:09]} d5 {[%clk 01:36:03]}
{[%emt 00:00:33]} 3. e5 {[%clk 01:41:35]} {[%emt 00:00:12]} c5 {[%clk
01:36:03]} {[%emt 00:00:30]} 4. c3 {[%clk 01:41:56]} {[%emt 00:00:09]} Qb6
{[%clk 01:36:16]} {[%emt 00:00:16]} 5. Nf3 {[%clk 01:42:00]} {[%emt 00:00:26]}
Nc6 {[%clk 01:36:27]} {[%emt 00:00:19]} 6. a3 {[%clk 01:42:21]} {[%emt
00:00:10]} f6 {[%clk 01:36:44]} {[%emt 00:00:13]} 7. Bd3 {[%clk 01:42:25]}
{[%emt 00:00:26]} fxe5 {[%clk 01:36:52]} {[%emt 00:00:22]} 8. dxe5 {[%clk
01:42:27]} {[%emt 00:00:28]} c4 {[%clk 01:36:49]} {[%emt 00:00:32]} 9. Bc2
{[%clk 01:42:28]} {[%emt 00:00:28]} g6 {[%clk 01:37:04]} {[%emt 00:00:15]} 10.
O-O {[%clk 01:42:07]} {[%emt 00:00:52]} Bg7 {[%clk 01:37:17]} {[%emt 00:00:17]}
11. Nbd2 {[%clk 01:41:21]} {[%emt 00:01:15]} Nh6 {[%clk 01:37:22]} {[%emt
00:00:25]} 12. b3 {[%clk 01:28:25]} {[%emt 00:13:27]} cxb3 {[%clk 01:36:35]}
{[%emt 00:01:17]} 13. Bxb3 {[%clk 01:28:47]} {[%emt 00:00:08]} O-O {[%clk
01:36:36]} {[%emt 00:00:28]} 14. c4 {[%clk 01:27:55]} {[%emt 00:01:23]} Ng4
{[%clk 01:21:07]} {[%emt 00:15:59]} 15. cxd5 {[%clk 01:21:03]} {[%emt
00:07:23]} Ncxe5 {[%clk 01:20:34]} {[%emt 00:01:03]} 16. Rb1 {[%clk 01:18:45]}
{[%emt 00:02:48]} Nxf2 {[%clk 01:19:14]} {[%emt 00:01:48]} 17. Rxf2 {[%clk
01:18:22]} {[%emt 00:00:54]} Ng4 {[%clk 01:11:10]} {[%emt 00:08:35]} 18. Ne4
{[%clk 01:16:42]} {[%emt 00:02:10]} Nxf2 {[%clk 01:10:49]} {[%emt 00:00:51]} 19.
Nxf2 {[%clk 01:17:08]} {[%emt 00:00:03]} Kh8 {[%clk 01:08:04]} {[%emt
00:03:15]} 20. Ba2 {[%clk 01:13:00]} {[%emt 00:04:40]} Qa6 {[%clk 00:48:32]}
{[%emt 00:20:01]} 21. d6 {[%clk 01:10:54]} {[%emt 00:02:36]} Bd7 {[%clk
00:46:10]} {[%emt 00:02:52]} 22. Bb2 {[%clk 01:09:57]} {[%emt 00:01:26]} Bxb2
{[%clk 00:38:43]} {[%emt 00:07:58]} 23. Rxb2 {[%clk 01:10:26]} {[%emt
00:00:02]} Rac8 {[%clk 00:38:57]} {[%emt 00:00:16]} 24. Ng4 {[%clk 01:08:19]}
{[%emt 00:02:36]} Rf4 {[%clk 00:37:08]} {[%emt 00:02:18]} 25. Qa1 {[%clk
00:55:56]} {[%emt 00:12:54]} 1-0

[Event "Masters Tournament (MTO)"]
[Site "Biel, Switzerland"]
[Date "2026.07.13"]
[Round "1.36"]
[White "Hornung, Hans"]
[Black "Ling, Chenxuan"]
[Result "0-1"]
[TimeControl "100+30+30sec/move"]
[WhiteTitle "-"]
[BlackTitle "-"]
[WhiteFideId "4615140"]
[BlackFideId "30983118"]
[WhiteElo "1924"]
[BlackElo "2166"]

1. Nf3 {[%clk 01:40:09]} {[%emt 00:00:35]} c5 {[%clk 01:40:49]} {[%emt
00:00:25]} 2. c4 {[%clk 01:40:26]} {[%emt 00:00:14]} Nc6 {[%clk 01:41:10]}
{[%emt 00:00:09]} 3. Nc3 {[%clk 01:40:34]} {[%emt 00:00:22]} Nf6 {[%clk
01:41:30]} {[%emt 00:00:10]} 4. e3 {[%clk 01:40:53]} {[%emt 00:00:10]} g6
{[%clk 01:41:11]} {[%emt 00:00:50]} 5. d4 {[%clk 01:40:50]} {[%emt 00:00:32]}
cxd4 {[%clk 01:41:31]} {[%emt 00:00:11]} 6. exd4 {[%clk 01:41:07]} {[%emt
00:00:11]} d5 {[%clk 01:41:51]} {[%emt 00:00:12]} 7. cxd5 {[%clk 01:41:12]}
{[%emt 00:00:24]} Nxd5 {[%clk 01:42:14]} {[%emt 00:00:08]} 8. Qb3 {[%clk
01:41:22]} {[%emt 00:00:19]} e6 {[%clk 01:41:33]} {[%emt 00:01:12]} 9. Bb5
{[%clk 01:40:39]} {[%emt 00:01:12]} Bg7 {[%clk 01:40:42]} {[%emt 00:01:21]} 10.
O-O {[%clk 01:40:24]} {[%emt 00:00:45]} O-O {[%clk 01:40:20]} {[%emt 00:00:53]}
11. Bxc6 {[%clk 01:35:35]} {[%emt 00:05:18]} bxc6 {[%clk 01:40:39]} {[%emt
00:00:12]} 12. Re1 {[%clk 01:35:02]} {[%emt 00:01:02]} Qc7 {[%clk 01:27:02]}
{[%emt 00:14:08]} 13. Ne4 {[%clk 01:33:00]} {[%emt 00:02:32]} Rb8 {[%clk
01:25:24]} {[%emt 00:02:09]} 14. Qd1 {[%clk 01:31:30]} {[%emt 00:01:59]} Rd8
{[%clk 01:18:31]} {[%emt 00:07:23]} 15. b3 {[%clk 01:16:05]} {[%emt 00:15:55]}
h6 {[%clk 01:12:03]} {[%emt 00:06:59]} 16. Bd2 {[%clk 01:15:49]} {[%emt
00:00:44]} Nf4 {[%clk 00:54:39]} {[%emt 00:17:55]} 17. Qc2 {[%clk 01:09:26]}
{[%emt 00:06:52]} g5 {[%clk 00:43:38]} {[%emt 00:11:33]} 18. h3 {[%clk
01:09:20]} {[%emt 00:00:35]} Bb7 {[%clk 00:43:30]} {[%emt 00:00:38]} 19. Nc5
{[%clk 01:08:28]} {[%emt 00:01:21]} Rd5 {[%clk 00:38:53]} {[%emt 00:05:09]} 20.
Rad1 {[%clk 01:03:37]} {[%emt 00:05:19]} Bc8 {[%clk 00:38:01]} {[%emt
00:01:23]} 21. Bxf4 {[%clk 00:58:46]} {[%emt 00:05:20]} Qxf4 {[%clk 00:38:23]}
{[%emt 00:00:09]} 22. Nd3 {[%clk 00:58:17]} {[%emt 00:00:57]} Qc7 {[%clk
00:38:00]} {[%emt 00:00:55]} 23. Nde5 {[%clk 00:57:57]} {[%emt 00:00:49]} Bb7
{[%clk 00:36:33]} {[%emt 00:01:59]} 24. Rc1 {[%clk 00:55:14]} {[%emt 00:03:12]}
Rc8 {[%clk 00:36:01]} {[%emt 00:01:03]} 25. Nd3 {[%clk 00:53:08]} {[%emt
00:02:35]} Rcd8 {[%clk 00:31:27]} {[%emt 00:05:04]} 26. Nc5 {[%clk 00:47:48]}
{[%emt 00:05:50]} Bc8 {[%clk 00:30:41]} {[%emt 00:01:17]} 27. Ne4 {[%clk
00:37:35]} {[%emt 00:10:42]} Bd7 {[%clk 00:27:29]} {[%emt 00:03:42]} 28. Nc3
{[%clk 00:36:24]} {[%emt 00:01:40]} Rf5 {[%clk 00:27:13]} {[%emt 00:00:48]} 29.
Qe2 {[%clk 00:34:47]} {[%emt 00:02:05]} Be8 {[%clk 00:26:44]} {[%emt 00:01:00]}
30. Red1 {[%clk 00:31:31]} {[%emt 00:03:45]} Qe7 {[%clk 00:22:58]} {[%emt
00:04:17]} 31. Ne4 {[%clk 00:29:55]} {[%emt 00:02:05]} Rfd5 {[%clk 00:21:19]}
{[%emt 00:02:10]} 32. Nc3 {[%clk 00:30:00]} {[%emt 00:00:25]} Rf5 {[%clk
00:21:19]} {[%emt 00:00:30]} 33. Ne4 {[%clk 00:30:10]} {[%emt 00:00:20]} Rfd5
{[%clk 00:17:47]} {[%emt 00:04:03]} 34. Nc3 {[%clk 00:30:30]} {[%emt 00:00:09]}
R5d7 {[%clk 00:18:12]} {[%emt 00:00:05]} 35. Qe3 {[%clk 00:27:44]} {[%emt
00:03:15]} Rc7 {[%clk 00:16:25]} {[%emt 00:02:18]} 36. Na4 {[%clk 00:22:02]}
{[%emt 00:06:11]} Rcc8 {[%clk 00:14:56]} {[%emt 00:02:01]} 37. Nc5 {[%clk
00:17:21]} {[%emt 00:05:10]} Rd5 {[%clk 00:13:06]} {[%emt 00:02:20]} 38. Na4
{[%clk 00:17:16]} {[%emt 00:00:34]} Rcd8 {[%clk 00:08:10]} {[%emt 00:05:27]} 39.
Nc3 {[%clk 00:17:34]} {[%emt 00:00:11]} R5d7 {[%clk 00:08:27]} {[%emt
00:00:14]} 40. Ne5 {[%clk 00:14:04]} {[%emt 00:04:00]} Rc7 {[%clk 00:08:42]}
{[%emt 00:00:16]} 41. Na4 {[%clk 00:13:38]} {[%emt 00:00:54]} f6 {[%clk
00:08:49]} {[%emt 00:00:24]} 42. Nf3 {[%clk 00:13:33]} {[%emt 00:00:34]} Bf7
{[%clk 00:08:33]} {[%emt 00:00:48]} 43. Rd2 {[%clk 00:12:07]} {[%emt 00:01:55]}
h5 {[%clk 00:07:16]} {[%emt 00:01:47]} 44. Rdc2 {[%clk 00:08:47]} {[%emt
00:03:49]} g4 {[%clk 00:06:50]} {[%emt 00:00:56]} 45. hxg4 {[%clk 00:06:08]}
{[%emt 00:03:10]} hxg4 {[%clk 00:07:20]} {[%emt 00:00:01]} 46. Ne1 {[%clk
00:04:21]} {[%emt 00:02:14]} f5 {[%clk 00:06:40]} {[%emt 00:01:13]} 47. Rxc6
{[%clk 00:02:57]} {[%emt 00:01:52]} Rxc6 {[%clk 00:06:37]} {[%emt 00:00:34]} 48.
Rxc6 {[%clk 00:03:21]} {[%emt 00:00:05]} Bxd4 {[%clk 00:06:26]} {[%emt
00:00:42]} 49. Qg3 {[%clk 00:02:56]} {[%emt 00:00:54]} Bg7 {[%clk 00:03:48]}
{[%emt 00:03:09]} 50. Qc7 {[%clk 00:29:54]} {[%emt 00:03:32]} Rd7 {[%clk
00:31:46]} {[%emt 00:02:32]} 51. Qb8+ {[%clk 00:29:26]} {[%emt 00:00:58]} Kh7
{[%clk 00:32:05]} {[%emt 00:00:11]} 52. Kf1 {[%clk 00:28:30]} {[%emt 00:01:26]}
Qh4 {[%clk 00:31:06]} {[%emt 00:01:29]} 53. g3 {[%clk 00:27:05]} {[%emt
00:01:54]} Qh1+ {[%clk 00:31:24]} {[%emt 00:00:13]} 0-1